[Event "Early-Titled-Tuesday-Blitz-January-30-2024"]
[Site "Chess.com"]
[Date "2024.01.30"]
[Round "1"]
[White "topce"]
[Black "Ginger_GM"]
[Result "0-1"]
[WhiteElo "2366"]
[BlackElo "2684"]
[TimeControl "180+1"]
[EndTime "8:04:31 PST"]
[Termination "Ginger_GM won by resignation"]

1. c4 {[%clk 0:03:00.9]} 1... f5 {[%clk 0:02:59.4]} 2. Nc3 {[%clk 0:02:53.2]}
2... Nf6 {[%clk 0:02:58.5]} 3. f4 {[%clk 0:02:51.6]} 3... d6 {[%clk 0:02:56.5]}
4. Nf3 {[%clk 0:02:52.1]} 4... e5 {[%clk 0:02:55.5]} 5. fxe5 {[%clk 0:02:50.5]}
5... dxe5 {[%clk 0:02:55.1]} 6. Nxe5 {[%clk 0:02:50.9]} 6... Bd6 {[%clk
0:02:52.3]} 7. Nf3 {[%clk 0:02:50.8]} 7... Ng4 {[%clk 0:02:46.9]} 8. g3 {[%clk
0:02:34.3]} 8... Be6 {[%clk 0:02:26.5]} 9. Bg2 {[%clk 0:02:31.6]} 9... O-O
{[%clk 0:02:18.1]} 10. d3 {[%clk 0:02:12.1]} 10... Nc6 {[%clk 0:02:13.9]} 11.
Bg5 {[%clk 0:02:06.4]} 11... Qe8 {[%clk 0:02:06.6]} 12. Nb5 {[%clk 0:02:00.2]}
12... Bb4+ {[%clk 0:02:00.2]} 13. Nc3 {[%clk 0:01:56.9]} 13... f4 {[%clk
0:01:57.3]} 14. Qd2 {[%clk 0:01:46.9]} 14... Ne3 {[%clk 0:01:54.4]} 15. Rg1
{[%clk 0:01:45.4]} 15... Bg4 {[%clk 0:01:41.1]} 16. Bxf4 {[%clk 0:01:41.2]}
16... Nxg2+ {[%clk 0:01:40.9]} 17. Kf2 {[%clk 0:01:36.2]} 17... Nxf4 {[%clk
0:01:38]} 18. gxf4 {[%clk 0:01:36]} 18... Bxf3 {[%clk 0:01:35.4]} 19. Kxf3
{[%clk 0:01:35.6]} 19... Qh5+ {[%clk 0:01:28.7]} 20. Rg4 {[%clk 0:01:34.9]}
20... Ne5+ {[%clk 0:01:27]} 21. Ke4 {[%clk 0:01:30.6]} 21... Qxg4 {[%clk
0:01:22.8]} 22. Nd5 {[%clk 0:01:29.2]} 22... Bxd2 {[%clk 0:01:14]} 0-1

[Event "Early-Titled-Tuesday-Blitz-January-30-2024"]
[Site "Chess.com"]
[Date "2024.01.30"]
[Round "1"]
[White "Skatchkov_V"]
[Black "treadstone_71"]
[Result "1-0"]
[WhiteElo "2615"]
[BlackElo "2269"]
[TimeControl "180+1"]
[EndTime "8:04:49 PST"]
[Termination "Skatchkov_V won by resignation"]

1. d4 {[%clk 0:02:52.4]} 1... Nf6 {[%clk 0:02:58.9]} 2. c4 {[%clk 0:02:52.9]}
2... g6 {[%clk 0:02:57.4]} 3. Nc3 {[%clk 0:02:52.8]} 3... Bg7 {[%clk 0:02:55.1]}
4. e4 {[%clk 0:02:52.8]} 4... d6 {[%clk 0:02:53]} 5. h3 {[%clk 0:02:53.1]} 5...
O-O {[%clk 0:02:50.1]} 6. Bg5 {[%clk 0:02:53.4]} 6... c5 {[%clk 0:02:46.4]} 7.
d5 {[%clk 0:02:53.7]} 7... e6 {[%clk 0:02:45.4]} 8. Bd3 {[%clk 0:02:52.3]} 8...
exd5 {[%clk 0:02:41.5]} 9. exd5 {[%clk 0:02:53.2]} 9... Re8+ {[%clk 0:02:35.9]}
10. Nge2 {[%clk 0:02:52.7]} 10... Nbd7 {[%clk 0:02:06.4]} 11. f4 {[%clk
0:02:52.6]} 11... a6 {[%clk 0:01:51.8]} 12. O-O {[%clk 0:02:40.7]} 12... b5
{[%clk 0:01:43.2]} 13. cxb5 {[%clk 0:02:39.1]} 13... axb5 {[%clk 0:01:43.4]} 14.
Bxb5 {[%clk 0:02:35.4]} 14... Qb6 {[%clk 0:01:38.1]} 15. Qc2 {[%clk 0:02:27]}
15... Ba6 {[%clk 0:01:37.7]} 16. a4 {[%clk 0:02:26.8]} 16... Bxb5 {[%clk
0:01:35.3]} 17. axb5 {[%clk 0:02:26.6]} 17... Rxa1 {[%clk 0:01:09.9]} 18. Rxa1
{[%clk 0:02:26.1]} 18... c4+ {[%clk 0:01:09.6]} 19. Kh2 {[%clk 0:02:24.5]} 19...
Qe3 {[%clk 0:01:04.7]} 20. Ra4 {[%clk 0:01:53.9]} 20... Nb6 {[%clk 0:00:56.7]}
21. Bxf6 {[%clk 0:01:48.8]} 21... Bxf6 {[%clk 0:00:54.9]} 22. Ra1 {[%clk
0:01:44.5]} 22... Bxc3 {[%clk 0:00:53.5]} 23. Nxc3 {[%clk 0:01:44.7]} 23...
Qxf4+ {[%clk 0:00:53.6]} 24. Kh1 {[%clk 0:01:45.3]} 24... Qd4 {[%clk 0:00:45.4]}
25. Rd1 {[%clk 0:01:44.3]} 25... Qf2 {[%clk 0:00:45.5]} 26. Qxf2 {[%clk
0:01:44.1]} 1-0

[Event "Early-Titled-Tuesday-Blitz-January-30-2024"]
[Site "Chess.com"]
[Date "2024.01.30"]
[Round "1"]
[White "GMWSO"]
[Black "winniethepooh04"]
[Result "1-0"]
[WhiteElo "3143"]
[BlackElo "2545"]
[TimeControl "180+1"]
[EndTime "8:04:54 PST"]
[Termination "GMWSO won by resignation"]

1. b3 {[%clk 0:02:45.4]} 1... e6 {[%clk 0:03:00.9]} 2. Bb2 {[%clk 0:02:45.6]}
2... Nf6 {[%clk 0:03:01.1]} 3. Nf3 {[%clk 0:02:44.7]} 3... d5 {[%clk 0:03:00.7]}
4. e3 {[%clk 0:02:40.3]} 4... Be7 {[%clk 0:03:00.3]} 5. g4 {[%clk 0:02:36.1]}
5... Nxg4 {[%clk 0:02:41]} 6. Bxg7 {[%clk 0:02:26.9]} 6... Rg8 {[%clk
0:02:40.8]} 7. Bb2 {[%clk 0:02:26.9]} 7... Bf6 {[%clk 0:02:38.3]} 8. d4 {[%clk
0:02:20.6]} 8... h5 {[%clk 0:02:37.5]} 9. c4 {[%clk 0:02:14.7]} 9... Nd7 {[%clk
0:02:31]} 10. Nc3 {[%clk 0:02:12.4]} 10... c6 {[%clk 0:02:30.5]} 11. Rg1 {[%clk
0:02:07]} 11... b6 {[%clk 0:02:24.6]} 12. e4 {[%clk 0:02:03.2]} 12... Bb7 {[%clk
0:02:22]} 13. e5 {[%clk 0:01:54.4]} 13... Be7 {[%clk 0:02:11.3]} 14. cxd5 {[%clk
0:01:51.1]} 14... cxd5 {[%clk 0:02:10]} 15. Qd2 {[%clk 0:01:51.3]} 15... Bf8
{[%clk 0:01:55.8]} 16. h3 {[%clk 0:01:45.4]} 16... Nh6 {[%clk 0:01:56.2]} 17.
Rxg8 {[%clk 0:01:43.2]} 17... Nxg8 {[%clk 0:01:57.1]} 18. Nb5 {[%clk 0:01:24.3]}
18... a6 {[%clk 0:01:51.4]} 19. Nd6+ {[%clk 0:01:24]} 19... Bxd6 {[%clk
0:01:52.1]} 20. exd6 {[%clk 0:01:24.9]} 20... Qf6 {[%clk 0:01:52.4]} 21. Be2
{[%clk 0:01:23.4]} 21... Nh6 {[%clk 0:01:51.2]} 22. O-O-O {[%clk 0:01:21]} 22...
Rc8+ {[%clk 0:01:50.2]} 23. Kb1 {[%clk 0:01:20.7]} 23... Nf5 {[%clk 0:01:49.9]}
24. Qf4 {[%clk 0:01:14.4]} 24... Nf8 {[%clk 0:01:41.8]} 25. Ne5 {[%clk
0:01:12.8]} 25... Ng6 {[%clk 0:01:36.2]} 26. d7+ {[%clk 0:01:12]} 26... Ke7
{[%clk 0:01:31.6]} 27. dxc8=Q {[%clk 0:01:12.7]} 27... Bxc8 {[%clk 0:01:30.3]}
28. Nxg6+ {[%clk 0:01:10.6]} 28... Qxg6 {[%clk 0:01:27]} 29. Qc7+ {[%clk
0:01:09.2]} 29... Bd7 {[%clk 0:01:26.7]} 30. Ba3+ {[%clk 0:01:09]} 30... Ke8
{[%clk 0:01:24.6]} 1-0

[Event "Early-Titled-Tuesday-Blitz-January-30-2024"]
[Site "Chess.com"]
[Date "2024.01.30"]
[Round "1"]
[White "rikchessmx"]
[Black "ozates"]
[Result "0-1"]
[WhiteElo "2322"]
[BlackElo "2647"]
[TimeControl "180+1"]
[EndTime "8:04:57 PST"]
[Termination "ozates won by checkmate"]

1. e4 {[%clk 0:02:36.7]} 1... c5 {[%clk 0:02:58.4]} 2. Nf3 {[%clk 0:02:35.8]}
2... a6 {[%clk 0:02:58.8]} 3. a4 {[%clk 0:02:34.2]} 3... e6 {[%clk 0:02:57.2]}
4. Nc3 {[%clk 0:02:33.4]} 4... Nc6 {[%clk 0:02:54.9]} 5. g3 {[%clk 0:02:30.5]}
5... d6 {[%clk 0:02:52.9]} 6. Bg2 {[%clk 0:02:30.3]} 6... g6 {[%clk 0:02:53]} 7.
d4 {[%clk 0:02:29.4]} 7... cxd4 {[%clk 0:02:52.6]} 8. Nxd4 {[%clk 0:02:29.2]}
8... Bg7 {[%clk 0:02:53]} 9. Nxc6 {[%clk 0:02:28.6]} 9... bxc6 {[%clk
0:02:53.1]} 10. O-O {[%clk 0:02:27.7]} 10... Ne7 {[%clk 0:02:53]} 11. Re1 {[%clk
0:02:26.2]} 11... O-O {[%clk 0:02:52.8]} 12. Bf4 {[%clk 0:02:13.7]} 12... d5
{[%clk 0:02:51.4]} 13. Qd2 {[%clk 0:02:10.6]} 13... d4 {[%clk 0:02:39.5]} 14.
Nb1 {[%clk 0:02:05.4]} 14... e5 {[%clk 0:02:39.6]} 15. Bh6 {[%clk 0:02:03.2]}
15... c5 {[%clk 0:02:31.5]} 16. Na3 {[%clk 0:02:02.1]} 16... Be6 {[%clk
0:02:23]} 17. b3 {[%clk 0:02:01.4]} 17... Rc8 {[%clk 0:02:03.6]} 18. Bf1 {[%clk
0:02:02.3]} 18... a5 {[%clk 0:02:01.5]} 19. Nc4 {[%clk 0:02:03.2]} 19... Bxc4
{[%clk 0:01:48]} 20. Bxg7 {[%clk 0:02:00.4]} 20... Kxg7 {[%clk 0:01:47]} 21.
Bxc4 {[%clk 0:01:59.6]} 21... Qd6 {[%clk 0:01:46.3]} 22. f4 {[%clk 0:01:57.7]}
22... exf4 {[%clk 0:01:44.2]} 23. gxf4 {[%clk 0:01:57.4]} 23... f5 {[%clk
0:01:42.6]} 24. e5 {[%clk 0:01:53.7]} 24... Qc6 {[%clk 0:01:42.2]} 25. Qxa5
{[%clk 0:01:51.6]} 25... Nd5 {[%clk 0:01:42.3]} 26. Bxd5 {[%clk 0:01:47.8]}
26... Qxd5 {[%clk 0:01:43.2]} 27. Qd2 {[%clk 0:01:47.5]} 27... c4 {[%clk
0:01:42]} 28. b4 {[%clk 0:01:45.8]} 28... d3 {[%clk 0:01:40.5]} 29. cxd3 {[%clk
0:01:40.8]} 29... cxd3 {[%clk 0:01:41.4]} 30. Rac1 {[%clk 0:01:40.7]} 30... Rxc1
{[%clk 0:01:38.3]} 31. Rxc1 {[%clk 0:01:39.8]} 31... Qd4+ {[%clk 0:01:37.7]} 32.
Kg2 {[%clk 0:01:37.9]} 32... Qe4+ {[%clk 0:01:35.1]} 33. Kg3 {[%clk 0:01:31.8]}
33... g5 {[%clk 0:01:34.2]} 34. Re1 {[%clk 0:01:17.3]} 34... gxf4+ {[%clk
0:01:29.9]} 35. Kh3 {[%clk 0:01:17.4]} 35... Qf3+ {[%clk 0:01:28.2]} 36. Kh4
{[%clk 0:01:13.8]} 36... Qg4# {[%clk 0:01:29.1]} 0-1

[Event "Early-Titled-Tuesday-Blitz-January-30-2024"]
[Site "Chess.com"]
[Date "2024.01.30"]
[Round "1"]
[White "yosephtaher"]
[Black "EvilMorty23"]
[Result "1-0"]
[WhiteElo "2927"]
[BlackElo "2507"]
[TimeControl "180+1"]
[EndTime "8:05:00 PST"]
[Termination "yosephtaher won by checkmate"]

1. d4 {[%clk 0:03:00.9]} 1... Nf6 {[%clk 0:02:59.8]} 2. Nc3 {[%clk 0:03:01]}
2... e6 {[%clk 0:03:00]} 3. e4 {[%clk 0:03:00.9]} 3... d5 {[%clk 0:03:00.2]} 4.
e5 {[%clk 0:03:01.3]} 4... Nfd7 {[%clk 0:03:00.4]} 5. f4 {[%clk 0:03:02]} 5...
c5 {[%clk 0:03:01.1]} 6. Nce2 {[%clk 0:03:02.6]} 6... Nc6 {[%clk 0:03:01.1]} 7.
Nf3 {[%clk 0:03:03.5]} 7... cxd4 {[%clk 0:02:54.5]} 8. Nexd4 {[%clk 0:03:04.4]}
8... Bc5 {[%clk 0:02:49.2]} 9. c3 {[%clk 0:03:03.9]} 9... Qb6 {[%clk 0:02:43.8]}
10. Rb1 {[%clk 0:03:02.5]} 10... g5 {[%clk 0:02:41.9]} 11. Be3 {[%clk
0:02:58.9]} 11... gxf4 {[%clk 0:02:41.2]} 12. Bxf4 {[%clk 0:02:58.9]} 12...
Ndxe5 {[%clk 0:02:40.8]} 13. Bxe5 {[%clk 0:02:56.9]} 13... Nxe5 {[%clk
0:02:38.5]} 14. Nxe5 {[%clk 0:02:57.7]} 14... Rg8 {[%clk 0:02:34.1]} 15. Qh5
{[%clk 0:02:56.1]} 15... Rg7 {[%clk 0:02:32.4]} 16. Qh6 {[%clk 0:02:53.6]} 16...
Kf8 {[%clk 0:02:30.1]} 17. Qf6 {[%clk 0:02:47.4]} 17... Be7 {[%clk 0:02:20.6]}
18. Qf2 {[%clk 0:02:41.3]} 18... f6 {[%clk 0:02:17.3]} 19. Be2 {[%clk
0:02:37.9]} 19... Kg8 {[%clk 0:02:14.4]} 20. Ng4 {[%clk 0:02:38.2]} 20... e5
{[%clk 0:02:14.4]} 21. Nh6+ {[%clk 0:02:36.3]} 21... Kf8 {[%clk 0:02:07.2]} 22.
Ndf5 {[%clk 0:02:35.3]} 22... Bc5 {[%clk 0:01:46.2]} 23. Qf3 {[%clk 0:02:34.4]}
23... Rg5 {[%clk 0:01:42.2]} 24. h4 {[%clk 0:02:31]} 24... e4 {[%clk 0:01:42.3]}
25. Qh3 {[%clk 0:02:23.1]} 25... Bf2+ {[%clk 0:01:37.1]} 26. Kf1 {[%clk
0:02:22.4]} 26... Rg3 {[%clk 0:01:37.3]} 27. Qh2 {[%clk 0:02:17.9]} 27... Qc7
{[%clk 0:00:51.8]} 28. Kxf2 {[%clk 0:02:15.3]} 28... Qf4+ {[%clk 0:00:39.5]} 29.
Ke1 {[%clk 0:02:15.4]} 29... e3 {[%clk 0:00:21.7]} 30. Qxg3 {[%clk 0:02:13.9]}
30... Qe4 {[%clk 0:00:22.1]} 31. Qg8# {[%clk 0:02:12.7]} 1-0

[Event "Early-Titled-Tuesday-Blitz-January-30-2024"]
[Site "Chess.com"]
[Date "2024.01.30"]
[Round "1"]
[White "Horokoskii"]
[Black "Let_it_be_1"]
[Result "0-1"]
[WhiteElo "2143"]
[BlackElo "2575"]
[TimeControl "180+1"]
[EndTime "8:05:00 PST"]
[Termination "Let_it_be_1 won by resignation"]

1. c4 {[%clk 0:03:00.4]} 1... e6 {[%clk 0:02:59.4]} 2. e4 {[%clk 0:02:56.3]}
2... d5 {[%clk 0:02:59.7]} 3. exd5 {[%clk 0:02:55.9]} 3... exd5 {[%clk 0:03:00]}
4. d4 {[%clk 0:02:56.3]} 4... Nf6 {[%clk 0:03:00]} 5. Nc3 {[%clk 0:02:55.7]}
5... Be7 {[%clk 0:03:00.2]} 6. Nf3 {[%clk 0:02:52.1]} 6... O-O {[%clk
0:02:59.9]} 7. h3 {[%clk 0:02:52.4]} 7... Re8 {[%clk 0:02:58.9]} 8. Be3 {[%clk
0:02:52.8]} 8... Nbd7 {[%clk 0:02:53.2]} 9. cxd5 {[%clk 0:02:46.1]} 9... Nb6
{[%clk 0:02:52.6]} 10. Bd3 {[%clk 0:02:40]} 10... Nfxd5 {[%clk 0:02:45]} 11. O-O
{[%clk 0:02:38.7]} 11... Bf6 {[%clk 0:02:21.6]} 12. Rc1 {[%clk 0:02:34.7]} 12...
c6 {[%clk 0:02:19.9]} 13. Re1 {[%clk 0:02:31.2]} 13... Nxe3 {[%clk 0:02:11.9]}
14. fxe3 {[%clk 0:02:30.9]} 14... Be6 {[%clk 0:02:10.3]} 15. Bb1 {[%clk
0:02:30.1]} 15... g6 {[%clk 0:02:05.1]} 16. Ne4 {[%clk 0:02:25]} 16... Bg7
{[%clk 0:01:59.3]} 17. Rf1 {[%clk 0:02:20.3]} 17... Nd5 {[%clk 0:01:44.8]} 18.
Nfg5 {[%clk 0:02:16.4]} 18... Nxe3 {[%clk 0:01:33.6]} 19. Qf3 {[%clk 0:02:14.7]}
19... Nxf1 {[%clk 0:01:32.6]} 20. Rxf1 {[%clk 0:02:15.6]} 20... Bd5 {[%clk
0:01:15.3]} 21. Nxf7 {[%clk 0:02:04.2]} 21... Qe7 {[%clk 0:01:14.7]} 22. Ne5
{[%clk 0:02:02.7]} 22... Rf8 {[%clk 0:01:00.2]} 23. Qg3 {[%clk 0:01:55.1]} 23...
Rxf1+ {[%clk 0:00:57.8]} 24. Kxf1 {[%clk 0:01:56]} 24... Rf8+ {[%clk 0:00:58]}
25. Kg1 {[%clk 0:01:56.1]} 25... Qb4 {[%clk 0:00:52.8]} 26. Nc3 {[%clk
0:01:39.2]} 26... Qxd4+ {[%clk 0:00:49.9]} 27. Qe3 {[%clk 0:01:31.5]} 27...
Qxe3+ {[%clk 0:00:49.2]} 0-1

[Event "Early-Titled-Tuesday-Blitz-January-30-2024"]
[Site "Chess.com"]
[Date "2024.01.30"]
[Round "1"]
[White "frequentblunders"]
[Black "YoreDea"]
[Result "0-1"]
[WhiteElo "2131"]
[BlackElo "2571"]
[TimeControl "180+1"]
[EndTime "8:05:06 PST"]
[Termination "YoreDea won by resignation"]

1. d3 {[%clk 0:03:00.5]} 1... d5 {[%clk 0:02:59.6]} 2. f4 {[%clk 0:03:00]} 2...
e5 {[%clk 0:02:57.9]} 3. Nf3 {[%clk 0:03:00.9]} 3... e4 {[%clk 0:02:57.8]} 4.
dxe4 {[%clk 0:03:00.9]} 4... dxe4 {[%clk 0:02:57.8]} 5. Qxd8+ {[%clk 0:03:01.8]}
5... Kxd8 {[%clk 0:02:58.4]} 6. Ng5 {[%clk 0:03:00.9]} 6... Nh6 {[%clk
0:02:57.8]} 7. Nxe4 {[%clk 0:03:00.2]} 7... Bf5 {[%clk 0:02:56.9]} 8. Nbc3
{[%clk 0:03:00.4]} 8... Bb4 {[%clk 0:02:56.3]} 9. Bd2 {[%clk 0:03:00.8]} 9...
Bxc3 {[%clk 0:02:56.2]} 10. Nxc3 {[%clk 0:03:01.7]} 10... Bxc2 {[%clk
0:02:56.1]} 11. e4 {[%clk 0:03:02]} 11... f5 {[%clk 0:02:54.1]} 12. e5 {[%clk
0:03:00.2]} 12... Nc6 {[%clk 0:02:52.2]} 13. Rc1 {[%clk 0:02:52.1]} 13... Be4
{[%clk 0:02:51.8]} 14. Nxe4 {[%clk 0:02:52.6]} 14... fxe4 {[%clk 0:02:52.7]} 15.
Bc4 {[%clk 0:02:52.4]} 15... Ke7 {[%clk 0:02:47.8]} 16. O-O {[%clk 0:02:49.8]}
16... Rad8 {[%clk 0:02:46.8]} 17. Be3 {[%clk 0:02:49.5]} 17... Nf5 {[%clk
0:02:45.9]} 18. Bc5+ {[%clk 0:02:47.8]} 18... Ke8 {[%clk 0:02:43.6]} 19. g4
{[%clk 0:02:46.5]} 19... Nfd4 {[%clk 0:02:37.4]} 20. Rfd1 {[%clk 0:02:26.9]}
20... b6 {[%clk 0:02:20.8]} 21. Ba3 {[%clk 0:02:10.1]} 21... b5 {[%clk
0:02:01.5]} 22. Bxb5 {[%clk 0:02:03.9]} 22... Nxb5 {[%clk 0:02:00.4]} 23. Rxd8+
{[%clk 0:01:57.4]} 23... Nxd8 {[%clk 0:02:00.1]} 24. Re1 {[%clk 0:01:53.1]}
24... Nxa3 {[%clk 0:01:58.9]} 25. bxa3 {[%clk 0:01:53.3]} 25... Ne6 {[%clk
0:01:49.9]} 26. Rxe4 {[%clk 0:01:53.3]} 26... Kd7 {[%clk 0:01:49.2]} 27. Ra4
{[%clk 0:01:48.4]} 27... Rb8 {[%clk 0:01:46.5]} 28. f5 {[%clk 0:01:46.4]} 28...
Ng5 {[%clk 0:01:42.7]} 29. Rxa7 {[%clk 0:01:45.7]} 29... Nf3+ {[%clk 0:01:39.3]}
30. Kf2 {[%clk 0:01:45.5]} 30... Nxe5 {[%clk 0:01:40.2]} 31. Kg3 {[%clk
0:01:43.2]} 31... Rb2 {[%clk 0:01:39.3]} 32. g5 {[%clk 0:01:35.5]} 32... Rxa2
{[%clk 0:01:36.3]} 33. h4 {[%clk 0:01:33.5]} 33... Nc4 {[%clk 0:01:36.2]} 34. a4
{[%clk 0:01:32.8]} 34... Nd6 {[%clk 0:01:33.8]} 35. Kg4 {[%clk 0:01:30.5]} 35...
Rg2+ {[%clk 0:01:31.2]} 36. Kh3 {[%clk 0:01:29.8]} 36... Rf2 {[%clk 0:01:30.7]}
37. g6 {[%clk 0:01:30]} 37... h5 {[%clk 0:01:28.1]} 38. Ra5 {[%clk 0:01:25.5]}
38... Rxf5 {[%clk 0:01:26.9]} 39. Rxf5 {[%clk 0:01:25.2]} 39... Nxf5 {[%clk
0:01:27.1]} 40. Kg2 {[%clk 0:01:24.5]} 40... Nxh4+ {[%clk 0:01:26.9]} 41. Kg3
{[%clk 0:01:24.4]} 41... Nxg6 {[%clk 0:01:27.8]} 0-1

[Event "Early-Titled-Tuesday-Blitz-January-30-2024"]
[Site "Chess.com"]
[Date "2024.01.30"]
[Round "1"]
[White "akinov-akinseye"]
[Black "Tunahan_Makaraci"]
[Result "0-1"]
[WhiteElo "1904"]
[BlackElo "2554"]
[TimeControl "180+1"]
[EndTime "8:05:08 PST"]
[Termination "Tunahan_Makaraci won by resignation"]

1. e4 {[%clk 0:02:59.4]} 1... c5 {[%clk 0:02:59.2]} 2. Nc3 {[%clk 0:02:58.2]}
2... Nc6 {[%clk 0:02:57.3]} 3. Nf3 {[%clk 0:02:58]} 3... g6 {[%clk 0:02:56.6]}
4. g3 {[%clk 0:02:57.9]} 4... Bg7 {[%clk 0:02:56.2]} 5. Bg2 {[%clk 0:02:57.7]}
5... d6 {[%clk 0:02:56.1]} 6. O-O {[%clk 0:02:56.7]} 6... Nf6 {[%clk 0:02:55.3]}
7. d3 {[%clk 0:02:56.1]} 7... O-O {[%clk 0:02:54.4]} 8. Be3 {[%clk 0:02:55.1]}
8... Rb8 {[%clk 0:02:53.7]} 9. Qd2 {[%clk 0:02:54.7]} 9... b5 {[%clk 0:02:47.8]}
10. a3 {[%clk 0:02:52.1]} 10... Bg4 {[%clk 0:02:44.7]} 11. h3 {[%clk 0:02:49.5]}
11... Bxf3 {[%clk 0:02:43.9]} 12. Bxf3 {[%clk 0:02:50.4]} 12... Nd7 {[%clk
0:02:30.6]} 13. Rab1 {[%clk 0:02:47.5]} 13... Nd4 {[%clk 0:02:18.7]} 14. Bg2
{[%clk 0:02:46.3]} 14... a5 {[%clk 0:02:17.6]} 15. Ne2 {[%clk 0:02:39.1]} 15...
Nxe2+ {[%clk 0:02:04.6]} 16. Qxe2 {[%clk 0:02:37.7]} 16... b4 {[%clk 0:02:05]}
17. axb4 {[%clk 0:02:32.5]} 17... axb4 {[%clk 0:01:59.4]} 18. Qd2 {[%clk
0:02:28.7]} 18... Qc7 {[%clk 0:01:48.9]} 19. Bh6 {[%clk 0:02:27.9]} 19... c4
{[%clk 0:01:35.6]} 20. Bxg7 {[%clk 0:02:26.5]} 20... Kxg7 {[%clk 0:01:36.5]} 21.
dxc4 {[%clk 0:02:16.4]} 21... Qxc4 {[%clk 0:01:34.8]} 22. Qd3 {[%clk 0:02:16.3]}
22... Rfc8 {[%clk 0:01:29.2]} 23. Rfc1 {[%clk 0:02:12.2]} 23... Ne5 {[%clk
0:01:22.1]} 24. Qxc4 {[%clk 0:02:03.1]} 24... Rxc4 {[%clk 0:01:21.3]} 25. f4
{[%clk 0:01:58.8]} 25... Nd7 {[%clk 0:01:20.5]} 26. Kf2 {[%clk 0:01:57.9]} 26...
Rbc8 {[%clk 0:01:18.7]} 27. c3 {[%clk 0:01:52.7]} 27... bxc3 {[%clk 0:01:18.3]}
28. bxc3 {[%clk 0:01:51.8]} 28... Kf6 {[%clk 0:01:04.5]} 29. Rb7 {[%clk
0:01:48.3]} 29... Nc5 {[%clk 0:01:04]} 30. Rb4 {[%clk 0:01:29.2]} 30... Nd3+
{[%clk 0:01:03.3]} 0-1

[Event "Early-Titled-Tuesday-Blitz-January-30-2024"]
[Site "Chess.com"]
[Date "2024.01.30"]
[Round "1"]
[White "Roman_Ovetchkin"]
[Black "kidagent"]
[Result "1-0"]
[WhiteElo "2639"]
[BlackElo "2311"]
[TimeControl "180+1"]
[EndTime "8:05:09 PST"]
[Termination "Roman_Ovetchkin won by resignation"]

1. d4 {[%clk 0:02:55.3]} 1... d5 {[%clk 0:02:59.3]} 2. c4 {[%clk 0:02:54.8]}
2... c6 {[%clk 0:02:59]} 3. Nf3 {[%clk 0:02:53.4]} 3... Nf6 {[%clk 0:02:59]} 4.
Qc2 {[%clk 0:02:51.1]} 4... e6 {[%clk 0:02:57.4]} 5. Nbd2 {[%clk 0:02:50.4]}
5... Nbd7 {[%clk 0:02:51.2]} 6. g3 {[%clk 0:02:50.2]} 6... Be7 {[%clk 0:02:50]}
7. Bg2 {[%clk 0:02:50.2]} 7... O-O {[%clk 0:02:50.6]} 8. O-O {[%clk 0:02:50.2]}
8... dxc4 {[%clk 0:02:45.7]} 9. Nxc4 {[%clk 0:02:49.5]} 9... c5 {[%clk
0:02:35.6]} 10. Rd1 {[%clk 0:02:45.2]} 10... cxd4 {[%clk 0:02:35.3]} 11. Nxd4
{[%clk 0:02:44.7]} 11... a6 {[%clk 0:02:27]} 12. Bf4 {[%clk 0:02:42.9]} 12...
Nd5 {[%clk 0:02:23.1]} 13. Bd2 {[%clk 0:02:34.6]} 13... Bf6 {[%clk 0:02:20.5]}
14. Be1 {[%clk 0:02:30.7]} 14... b5 {[%clk 0:02:16]} 15. Nc6 {[%clk 0:01:03.2]}
15... Qc7 {[%clk 0:01:50.5]} 16. N4a5 {[%clk 0:01:03.1]} 16... N7b6 {[%clk
0:01:33.7]} 17. e4 {[%clk 0:01:01.2]} 17... Ne7 {[%clk 0:01:12]} 18. Bb4 {[%clk
0:00:58.5]} 18... Bb7 {[%clk 0:01:03]} 19. Nxe7+ {[%clk 0:00:55.6]} 1-0

[Event "Early-Titled-Tuesday-Blitz-January-30-2024"]
[Site "Chess.com"]
[Date "2024.01.30"]
[Round "1"]
[White "elgrona"]
[Black "aghasiyevkamal"]
[Result "1-0"]
[WhiteElo "2288"]
[BlackElo "2586"]
[TimeControl "180+1"]
[EndTime "8:05:09 PST"]
[Termination "elgrona won by resignation"]

1. Nf3 {[%clk 0:03:00.9]} 1... d5 {[%clk 0:02:59.5]} 2. b3 {[%clk 0:02:59.3]}
2... Nf6 {[%clk 0:02:59.8]} 3. Bb2 {[%clk 0:02:59.7]} 3... e6 {[%clk 0:03:00.6]}
4. e3 {[%clk 0:02:59.6]} 4... Be7 {[%clk 0:03:01.3]} 5. c4 {[%clk 0:02:57.7]}
5... O-O {[%clk 0:03:01]} 6. d4 {[%clk 0:02:54.6]} 6... dxc4 {[%clk 0:02:59.2]}
7. bxc4 {[%clk 0:02:53.2]} 7... c5 {[%clk 0:02:59.5]} 8. Nbd2 {[%clk 0:02:52.4]}
8... Nc6 {[%clk 0:02:59.2]} 9. Be2 {[%clk 0:02:49.5]} 9... b6 {[%clk 0:02:59.4]}
10. O-O {[%clk 0:02:48.8]} 10... Bb7 {[%clk 0:02:59.7]} 11. Rc1 {[%clk
0:02:39.5]} 11... Rc8 {[%clk 0:02:58.6]} 12. h3 {[%clk 0:02:35.4]} 12... Qc7
{[%clk 0:02:57.6]} 13. Qc2 {[%clk 0:02:30.2]} 13... h6 {[%clk 0:02:55.4]} 14.
Rfd1 {[%clk 0:02:30]} 14... Rfd8 {[%clk 0:02:55.2]} 15. Nb3 {[%clk 0:02:27.6]}
15... cxd4 {[%clk 0:02:51.1]} 16. exd4 {[%clk 0:02:26.6]} 16... Qb8 {[%clk
0:02:49.9]} 17. d5 {[%clk 0:02:10.9]} 17... exd5 {[%clk 0:02:47.1]} 18. cxd5
{[%clk 0:02:10.8]} 18... Nb4 {[%clk 0:02:44.2]} 19. Qf5 {[%clk 0:02:04.7]} 19...
Rxc1 {[%clk 0:02:39]} 20. Nxc1 {[%clk 0:01:59]} 20... Rxd5 {[%clk 0:02:34.4]}
21. Rxd5 {[%clk 0:01:51.4]} 21... Nbxd5 {[%clk 0:02:34.5]} 22. Ne5 {[%clk
0:01:44.3]} 22... Qc7 {[%clk 0:02:24.7]} 23. Bh5 {[%clk 0:01:28.8]} 23... Nxh5
{[%clk 0:02:09.7]} 24. Qxf7+ {[%clk 0:01:27.2]} 24... Kh8 {[%clk 0:02:07.7]} 25.
Qxh5 {[%clk 0:01:02.9]} 25... Nf6 {[%clk 0:01:55.3]} 26. Qf7 {[%clk 0:00:54.5]}
26... Bd6 {[%clk 0:01:45.2]} 27. Ng6+ {[%clk 0:00:44.1]} 27... Kh7 {[%clk
0:01:45]} 28. Nf8+ {[%clk 0:00:37.6]} 28... Bxf8 {[%clk 0:01:44.7]} 29. Qxc7
{[%clk 0:00:37.6]} 1-0